Cogmind - Beta 15 @@@ ROGUE MODE // 2025.07.03 @ 20:42:27 Player: Johnny5001 Result: Destroyed by D-53 Grenadier with Mini Grenade Launcher Performance ------------- Evolutions (0) 0 Regions Visited (2) 400 Robots Destroyed (25) 125 Value Destroyed (341) 341 Prototype IDs (0) 0 Alien Tech Used (0) 0 Bonus (0) 0 TOTAL SCORE: 866 Bonus ------- None Cogmind --------- Core Integrity 0/250 Matter 184/300 Energy 100/100 System Corruption 0% Temperature Cool (0) Movement Treading (160) Location -10/Mines Parts ------- > --- POWER (1) -------- (None) > --- PROPULSION (2) --- Improved Treads Improved Treads > --- UTILITY (2) ------ Large Storage Unit Seismic Detector > --- WEAPON (2) ------- Improved Light Cannon Improved Light Cannon > --- INVENTORY (15) --- Ion Engine Improved Treads Improved Treads Improved Heat Sink Sensor Array Transport Network Coupler Beam Cannon Beam Cannon Improved Light Cannon Improved Light Cannon Rocket Launcher Datajack Heavy Hammer Peak State ------------ > --- POWER ------------ Light Nuclear Core > --- PROPULSION ------- Improved Treads Improved Treads > --- UTILITY ---------- Large Storage Unit Seismic Detector > --- WEAPON ----------- Improved Light Cannon Improved Light Cannon > --- INVENTORY -------- Ion Engine Improved Treads Improved Treads Improved Heat Sink Sensor Array Transport Network Coupler Light Cannon Light Cannon Light Cannon Improved Light Cannon Improved Light Cannon Datajack Heavy Hammer [Rating: 15] Favorites ----------- Power Light Nuclear Core Engine Ion Engine Power Core Light Nuclear Core Propulsion Improved Treads Treads Improved Treads Leg Aluminum Leg Wheel Compact Wheel Flight Unit Flight Unit Utility Seismic Detector Device Seismic Detector Storage Large Storage Unit Protection Weapon Shielding Weapon Improved Light Cannon Energy Gun Particle Gun Ballistic Gun Assault Rifle Ballistic Cannon Improved Light Cannon Launcher Rocket Launcher Special Weapon Welding Torch Impact Weapon Heavy Hammer Special Melee Weapon Datajack Build | -11 -10 -10 ------- Run | Yrd Mat Min Slots Evolved . | . . . Power . | . . . Propulsion . | . . . Utility . | . . . Weapon . | . . . Parts Attached 33 | 8 24 1 Power 2 | 1 1 . Engine 1 | 1 . . Core 1 | . 1 . Reactor . | . . . Propulsion 8 | 2 6 . Treads 4 | . 4 . Leg 2 | 2 . . Wheel 1 | . 1 . Hover . | . . . Flight 1 | . 1 . Utility 9 | 3 6 . Device 2 | 1 1 . Storage 5 | 2 3 . Processor . | . . . Hackware . | . . . Protection 2 | . 2 . Artifact . | . . . Weapon 14 | 2 11 1 Energy Gun 3 | . 3 . Energy Cannon . | . . . Ballistic Gun 2 | 2 . . Ballistic Cannon 5 | . 5 . Launcher 1 | . . 1 Special Weapon 1 | . 1 . Impact Weapon 1 | . 1 . Slashing Weapon . | . . . Piercing Weapon . | . . . Special Melee Weapon 1 | . 1 . Unidentified Prototypes . | . . . Parts Lost 1 | . . 1 Power 1 | . . 1 Propulsion . | . . . Utility . | . . . Weapon . | . . . Highest Loss Streak 1 | . . 1 To Critical Strikes . | . . . Average Backups 10 | 4 11 13 Power 1 | . 1 1 Propulsion 2 | 3 2 2 Utility 2 | . 3 3 Weapon 4 | . 4 6 Tool/Special . | . . . Unused Backups 13 | . 4 9 Power 1 | . . 1 Propulsion 5 | . 3 2 Utility 2 | . . 2 Weapon 5 | . 1 4 Tool/Special . | . . . Average Slot Usage (%) 99 | . 99 99 Engine 1 | . 1 . Core 12 | . 12 13 Treads 20 | . 19 28 Leg 7 | . 8 . Device 13 | . 13 14 Storage 14 | . 14 14 Energy Gun 3 | . 3 . Ballistic Gun 4 | . 4 . Ballistic Cannon 16 | . 15 27 Impact Weapon 3 | . 3 . Peak Build Rating 15 | 7 15 15 Average Rating 12 | 5 13 14 On Entrance 7 | . 7 15 Naked Turns . | . . . Heaviest Build 34 | 14 34 34 Greatest Support 46 | 20 46 46 Greatest Overweight (x) 1 | . 1 . Average Overweight (x) . | . . . Largest Inventory Capacity 15 | 8 15 15 Average Capacity 12 | 7 12 15 Most Carried 13 | 7 13 13 Average Carried 10 | 4 11 13 Final Capacity 15 | 8 15 15 Final Carried 13 | 7 13 13 Class Distribution -------------------- 100% | Mutant Dominant Class ---------------- Mutant | -10/Materials Mutant | -10/Mines Resources | -11 -10 -10 ----------- Run | Yrd Mat Min Matter Collected 844 | 329 511 4 Remotely . | . . . Salvage Created 684 | 124 537 23 Parts 41 | 11 25 5 Haulers Intercepted 2 | . 2 . Recyclers Shooed . | . . . Parts Field Recycled . | . . . Retrieved Matter . | . . . Parts Self-Destructed . | . . . Prevented . | . . . Kills | -11 -10 -10 ------- Run | Yrd Mat Min Combat Hostiles Destroyed 15 | . 11 4 Guns 9 | . 9 . Cannons 3 | . 2 1 AOE 3 | . . 3 Classes Destroyed 8 | 2 5 1 Worker 1 | 1 . . Tunneler 5 | 5 . . Hauler 2 | . 2 . Recycler 2 | . 2 . Watcher 1 | . 1 . Swarmer 9 | . 6 3 Grunt 5 | . 5 . Assembled 1 | . . 1 Best Kill Streak 6 | 6 5 3 Combat Bots Only 5 | . 5 3 Max Kills in Single Turn 2 | 1 1 2 Gunslinging . | . . . Exploded 2 | . . 2 Melee . | . . . Uniques/NPCs Destroyed . | . . . Combat | -11 -10 -10 -------- Run | Yrd Mat Min Hostile Shots Fired 105 | . 93 12 Missed 31 | . 31 . Hits 74 | . 62 12 Melee 2 | . . 2 Projectile 72 | . 62 10 AOE 10 | . . 10 Critical Strikes 1 | . 1 . Damage Taken 1189 | . 695 494 Core 250 | . 140 110 Absorbed by Shields . | . . . Core Remaining (%) 100 | 100 . . Volleys Fired 77 | 18 53 6 Largest 2 | 2 2 2 Hottest 85 | 40 85 66 Shots Fired 146 | 36 100 10 Gun 120 | 36 84 . Cannon 24 | . 16 8 Launcher 2 | . . 2 Special . | . . . Kinetic 129 | 36 85 8 Thermal 11 | . 11 . Explosive 2 | . . 2 Electromagnetic 4 | . 4 . Robot Hit Streak 8 | 8 8 7 Robot Miss Streak 3 | 2 3 1 Penetration Max . | . . . Secondary Targets 3 | . 3 . Max Gunslinging Chain 1 | . 1 . Shots Hit Robots 90 | 25 60 5 Core Hits 32 | 9 19 4 Critical Kills . | . . . Critical Parts Destroyed 3 | . 3 . Critical Strikes 3 | . 3 . Destroy 2 | . 2 . Smash 1 | . 1 . Melee Attacks 3 | . 3 . Impact 3 | . 3 . Slashing . | . . . Piercing . | . . . Sneak Attacks 2 | . 2 . Combat Hostiles . | . . . Follow-up Attacks . | . . . Damage Inflicted 1423 | 265 941 217 Guns 853 | 265 588 . Cannons 286 | . 186 100 Explosions 117 | . . 117 Melee 140 | . 140 . Ramming 27 | . 27 . Kinetic 1007 | 265 642 100 Thermal 132 | . 132 . Explosive 117 | . . 117 Electromagnetic . | . . . Impact 140 | . 140 . Slashing . | . . . Piercing . | . . . Highest Corruption . | . . . Average Corruption . | . . . Corruption Purged . | . . . Corruption Blocked . | . . . Overload Shots . | . . . Overflow Damage 110 | . 110 . Projectiles . | . . . Explosions . | . . . Melee 110 | . 110 . Knockbacks 4 | . 2 2 Impact . | . . . Kinetic 4 | . 2 2 Secondary . | . . . Self-Inflicted Damage . | . . . Shots . | . . . Rammed 6 | . 6 . Targets Rammed 6 | . 6 . Kicked . | . . . Crushed . | . . . Highest Temperature 31 | . 31 24 Average Temperature 10 | . 10 13 Received Heat Transfer 294 | . 294 . Siege Activations . | . . . Martial Activations . | . . . Shielding Activations . | . . . Robots Disrupted . | . . . Combat Hostiles . | . . . Robots Corrupted 1 | . 1 . Combat Hostiles . | . . . Parts Fried . | . . . Impact Corruptions 2 | . 2 . Robots Melted . | . . . Combat Hostiles . | . . . Parts Melted . | . . . Heat Transferred 333 | . 333 . Parts Sabotaged . | . . . Parts Stolen . | . . . Parts Stripped . | . . . Power Chain Reactions . | . . . Alert | -11 -10 -10 ------- Run | Yrd Mat Min Maximum Alert Level . | . . . Low Security (%) 100 | 100 100 100 Level 1 . | . . . Level 2 . | . . . Level 3 . | . . . Level 4 . | . . . Level 5 . | . . . High Security . | . . . Max Security . | . . . Peak Influence 150 | 10 150 85 Initial . | . . . Average 20 | 1 21 30 Influence Increases 497 | 30 382 85 Destroy 0b10 Robot/C 280 | . 220 60 Destroy 0b10 Robot/NC 55 | 30 25 . Destroy Leader 66 | . 56 10 Successful Hack 19 | . 19 . Select Force Hacks 60 | . 60 . Destroy Structure 17 | . 2 15 Influence Decreases 452 | 30 382 40 Time Decay 442 | 30 382 30 Lost Part 10 | . . 10 Squads Dispatched 4 | . 4 . Investigation 2 | . 2 . Extermination . | . . . Reinforcement 2 | . 2 . Assault . | . . . Garrison . | . . . Intercept . | . . . Searches Triggered . | . . . Construction Impeded . | . . . Haulers Reinforced . | . . . Active Scanning Responses . | . . . Cargo Convoy Interrupts . | . . . Stealth | -11 -10 -10 --------- Run | Yrd Mat Min Distress Signals . | . . . Communications Jammed . | . . . Distress Signals . | . . . Times Spotted 35 | . 16 19 Peak Tracking Total 15 | . 4 15 Tactical Retreats . | . . . Traps | -11 -10 -10 ------- Run | Yrd Mat Min Traps Triggered . | . . . Indirectly . | . . . Trap Hack Attempts 38 | . 38 . Triggered . | . . . Disarmed . | . . . Reprogrammed 3 | . 3 . Reused . | . . . Traps Extracted . | . . . Installed . | . . . Triggered . | . . . Machines | -11 -10 -10 ---------- Run | Yrd Mat Min Machines Disabled . | . . . Max in Single Turn . | . . . Machines Repaired . | . . . Machines Dismantled . | . . . Machines Sabotaged . | . . . Overloaded Fab Kills . | . . . Hacking | -11 -10 -10 --------- Run | Yrd Mat Min Machines Accessed 8 | . 8 . Terminals 6 | . 6 . Fabricators . | . . . Repair Stations . | . . . Recycling Units 2 | . 2 . Scanalyzers . | . . . Garrison Access . | . . . Total Hacks 19 | . 19 . Successful 14 | . 14 . Failed 4 | . 4 . Catastrophic . | . . . Database Lockouts 1 | . 1 . Manual 11 | . 11 . Terminals 17 | . 17 . Fabricators . | . . . Repair Stations . | . . . Recycling Units 2 | . 2 . Scanalyzers . | . . . Garrison Access . | . . . Terminal Hacks 9 | . 9 . Record 3 | . 3 . Robot Analysis 1 | . 1 . Branch Access Points 1 | . 1 . Locate Traps 3 | . 3 . Registered Components 1 | . 1 . Fabricator Hacks . | . . . Repair Station Hacks . | . . . Recycling Unit Hacks . | . . . Scanalyzer . | . . . Garrison Access Hacks . | . . . Unauthorized Hacks 5 | . 5 . Terminals 3 | . 3 . Botnet 3 | . 3 . Fabricators . | . . . Repair Stations . | . . . Recycling Units 2 | . 2 . Tunnel 2 | . 2 . Scanalyzers . | . . . Garrison Access . | . . . Data Cores Recovered . | . . . Used . | . . . Hacking Detections 6 | . 6 . Full Trace Events . | . . . Feedback Events . | . . . Feedback Blocked . | . . . Robot Schematics Acquired . | . . . Robots Built . | . . . Authchips . | . . . Time . | . . . Total Robot Build Rating . | . . . Part Schematics Acquired . | . . . Parts Built . | . . . Authchips . | . . . Time . | . . . Total Part Build Rating . | . . . Parts Repaired . | . . . Time . | . . . Parts Recycled . | . . . Recycled Matter . | . . . Retrieved Matter . | . . . Retrieved Components . | . . . Parts Scanalyzed . | . . . Part Schematics Acquired . | . . . Parts Damaged . | . . . Bothacking | -11 -10 -10 ------------ Run | Yrd Mat Min Used RIF Installer . | . . . Robots Hacked . | . . . Non-combat . | . . . Combat . | . . . Robot Hacks Applied . | . . . Relay Couplers Released . | . . . Fabnet Peak Effective % . | . . . Robots Rewired . | . . . Allies Hacked . | . . . Hacks Repelled . | . . . Allies | -11 -10 -10 -------- Run | Yrd Mat Min Total Allies . | . . . Largest Group . | . . . Highest-Rated Group . | . . . Highest-Rated Ally . | . . . Total Orders . | . . . Ally Attacks . | . . . Total Damage . | . . . Kills . | . . . Allies Corrupted . | . . . Allies Melted . | . . . Intel | -11 -10 -10 ------- Run | Yrd Mat Min Active Infowar (turns) 2068 | 49 1861 158 Seismic 2068 | 49 1861 158 Robot Analysis Total 1 | . 1 . Derelict Logs Recovered 1 | . . 1 Drone Launches . | . . . Drone Recoveries . | . . . Exploration | -11 -10 -10 ------------- Run | Yrd Mat Min Turns Passed 2550 | 190 2202 158 Spaces Moved 1108 | 94 928 86 Core 2 | 2 . . Treads 587 | . 501 86 Legs 519 | 92 427 . Wheels . | . . . Hover . | . . . Flight . | . . . Fastest Speed 50 | 50 120 160 Average Speed 141 | 118 141 160 Slowest Speed 190 | 120 190 160 Overloaded Moves . | . . . Propulsion Burnouts . | . . . Robots Hopped . | . . . Potential Cave-ins . | . . . Cave-ins Triggered . | . . . Exploration Rate (%) 40 | 4 97 21 Regions Visited 2 Branch Regions 1 Pre-discovered Areas 2 | . 2 . Known Exits Taken 1 | . 1 . Unknown Exits Taken 1 | 1 . . Scrap Searched . | . . . Spaces Dug 22 | . 1 21 Terrain Destroyed 23 | . 2 21 Melee 1 | . 1 . Projectile 1 | . 1 . AOE 21 | . . 21 Terrain Rammed . | . . . Walls Destroyed . | . . . Machines Disabled . | . . . Actions | -11 -10 -10 --------- Run | Yrd Mat Min Total 1943 | 135 1712 96 Wait 612 | 8 604 . Move 1106 | 93 927 86 Hop . | . . . Pick Up 23 | 7 15 1 Fast Attach 24 | 7 17 . Attach 2 | . 2 . Detach 3 | . 3 . Swap 19 | 2 15 2 Drop 30 | . 29 1 Fire 77 | 18 53 6 Melee 3 | . 3 . Ram . | . . . Kick . | . . . Crush 6 | . 6 . Escape Stasis . | . . . Rewire . | . . . Trap 38 | . 38 . Miscellaneous . | . . . Route ------- -11/Scrapyard -10/Materials (discovered 5 exits: [*Mat x3] / *Min / [*Sub]) -10/Mines History --------- Turn | Location | Event 6 | -11/Scrapyard | Discovered new exit (range 16) 191 | -11/Scrapyard | Entered Materials 318 | -10/Materials | Build established: Mutant 372 | -10/Materials | Core integrity fell below 50% 569 | -10/Materials | Discovered new exit (range 12) 675 | -10/Materials | Discovered new exit (range 3) 1315 | -10/Materials | Discovered new exit (range 5) 1352 | -10/Materials | Discovered new exit (range 6) 1669 | -10/Materials | Discovered new exit (range 12) 1682 | -10/Materials | Identified exit to Mines 1682 | -10/Materials | Central database locked down 2393 | -10/Materials | Entered Mines 2400 | -10/Mines | Received a Rocket Launcher from a helpful Derelict 2518 | -10/Mines | Assembled infested the area 2528 | -10/Mines | Learned location of 1 exit from Materials 2551 | -10/Mines | Destroyed by D-53 Grenadier with Mini Grenade Launcher Last Messages --------------- 02540_ T-07 Excavator destroyed. 02540_ as-63267 destroyed. 02542_ The unstable cave ceiling collapses. 02542_ R-06 Scavenger collects Wheel. 02543_ Lgt. Nuclear Core destroyed. 02543_ as-25196 destroyed. 02543_ as-26745 destroyed. 02544_ The unstable cave ceiling collapses. 02545_ as-82744 destroyed. 02545_ as-94325 destroyed. 02545_ as-55204 destroyed. 02545_ R-06 Scavenger destroyed. 02546_ The unstable cave ceiling collapses. 02547_ as-74649 destroyed. 02547_ as-77465 destroyed. 02547_ as-71919 destroyed. 02547_ as-63107 destroyed. 02549_ D-53 Grenadier knocked back. 02549_ K-01 Serf collects debris. 02551_ D-53 Grenadier destroyed. Map ----- +----------------------------------------------------+ | ??????????????????????????????????????????????? | | ??????????????????????????????????????????????? | | ??????????????????????????????????????????????? | | ??????????????????????????????????????????????? | | ??????????????????????????????????????????????? | | ??????????????????????????????????????????????? | | ??????????????????????????????????????????????? | | ??????????????????????????????????????????????? | | ??????????????????????????????????????????????? | | ??????????????????????????????????????????????? | | ?????????????????????????????? ??????????????? | | ?????????????????????????????? ??????????????? | | ?????????????????????????????? ??????????????? | | ?????????????????????????????# #?????????????? | | ???????????????#?????????????# #?????????????? | | ??????????????## ????????????# #?????????????? | | ?????????????# < ???????????# #?????????????? | | ????????????? ??????????# #?????????????? | | ????????????# ###???#### #?????????????? | | ???????????? % # #### #?????????????? | | ???????????? % # ###???????????? | | ???????????## k ##??????????? | | ???????????? #??????????? | | ???????????????? # #??????????? | | ??????????????????## #??????????? | | ??????????????????# d @ #???????????? | | ??????????????????# ##???????????? | | ??????????????????# #????????????? | | ??????????????????# # #????????????? | | ????????????????? ## # # #????????????? | | ????????????????### ??###### ##????????????? | | ?????????????????? ???????# ##????????????? | | ?????????????????#????????# k #????????????? | | ??????????????????????????## ####?????????? | | ???????????????????????????## #?????????? | | ????????????????????????????### ### #?????????? | | ??????????????????????????????# #?# #?????????? | | ??????????????????????????????# #?# ########??? | | ?????????????????????####?????# #?# ## ##?? | | ????????????????????## ##????# ###*#= # #?? | | ??????????????????### ###??# = [ ##?? | | ?????????????????## ##?###### = ##? | | ?????????????????# #??????## #? | | ?????????????????# ##??????### #? | | ?????????????????## ## ##???#### ##? | | ??????????????????####?#### #??## ##?? | | ??????????????????????????## #?## ##??? | | ??????????????????????????## #?# ##???? | | ?????????????????????????## ### ] ##???? | | ?????????????????????????# #???? | +----------------------------------------------------+ Best States ------------- Heat Dissipation 39 Energy Generation 14 Energy Capacity 250 Matter Stores 267 Matter Capacity 450 Sight Range 16 Terrain Scan Density 10 Evasion (%) 55 Recoil Reduction 2 Item Schematics ----------------- None Robot Schematics ------------------ None Fabricated ------------ Nothing Repaired ---------- Nothing Alien Tech Used ----------------- None Achievements -------------- Brute Force Hehehe Loot Pinata Power Corrupts Quantum Hacking Uninvited Guest Challenges ------------ None Game ------ Seed SubdwellerReactiveChainsaw Manual? 0 Play Time 00:23:34 Cumulative 0.5 hours Start 2025.07.03 @ 20:20:28 End 2025.07.03 @ 20:42:27 Sessions 1 Manual Loads 0 Difficulty Rogue Special Mode None Game No. 2 Rogue 2 Adventurer 0 Explorer 0 Win Type - Total 0 Types 0/0/0/0/0/0/0/0/0/0 Lore% 0 Gallery% 3 Achievement% 3 Wizard Run 0 Options --------- Layout 1 ASCII 0 Keyboard 0 Movement Mouse Keybinds 0 Fullscreen 1 Font 24/Smallcaps Map View 50x35 Zoom Use 0% Tactical HUD 1 Map Filters NONE Filters NONE Steam 1 RUN: 87a2b52b-f5dd-4cf3-aeff-7e2de0528f06